fUSD/lending_fUSD_20251224
["ID","MTS","AMOUNT","RATE_DAILY","PERIOD"]
[399683709,1766617847267,-152.0,0.00019,2]
[399683710,1766617847277,-1256.0,0.00019,2]
[399683711,1766617847287,-1000.0,0.00019,2]
[399683712,1766617847297,-4609.0,0.00019003,2]
[399683713,1766617847307,-1500.0,0.00019068,2]
[399683714,1766617847318,-1500.0,0.00019068,2]
[399683715,1766617847329,-1500.0,0.00019068,2]
[399683716,1766617847339,-1500.0,0.00019068,2]
[399683717,1766617847350,-1500.0,0.00019068,2]
[399683718,1766617847359,-1500.0,0.00019068,2]
[399683719,1766617847369,-1500.0,0.00019068,2]
[399683720,1766617847379,-1500.0,0.00019068,2]
[399683721,1766617847390,-1500.0,0.00019068,2]
[399683722,1766617847400,-1500.0,0.00019068,2]
[399683723,1766617847411,-1500.0,0.00019068,2]
[399683724,1766617847422,-1500.0,0.00019068,2]
[399683725,1766617847432,-1500.0,0.00019068,2]
[399683726,1766617847443,-1500.0,0.00019068,2]
[399683727,1766617847453,-677.04950538,0.00019068,2]
[399683728,1766617847464,-1500.0,0.00019068,2]
[399683729,1766617847474,-1500.0,0.00019068,2]
[399683730,1766617847485,-500.0,0.00019088,3]
[399683731,1766617847496,-1609.0,0.00019102,2]
[399683732,1766617847506,-612.0,0.00019102,2]
[399683733,1766617847516,-1326.0,0.00019102,2]
[399683734,1766617847526,-3458.0,0.00019102,2]
[399683735,1766617847537,-1263.0,0.00019102,2]
[399683736,1766617847547,-432.0,0.00019102,2]
[399683737,1766617847558,-912.0,0.00019102,2]
[399683738,1766617847568,-1198.0,0.00019102,2]
[399683739,1766617847591,-2430.0,0.00019102,2]
[399683740,1766617847603,-4807.0,0.00019102,2]
[399683741,1766617847615,-6533.0,0.00019102,2]
[399683742,1766617847750,-1000.0,0.00019116,2]
[399683743,1766617847762,-26780.0,0.00019175,2]
[399683744,1766617847772,-2086.57419273,0.00019178,2]
[399683745,1766617847782,-20064.63,0.00019178,2]
[399683746,1766617847791,-200.0,0.0001919,2]
[399683747,1766617847801,-151.42395307,0.0001925,2]
[399683748,1766617847811,-1600.0,0.00019278,2]
[399683749,1766617847822,-150.0,0.00019299,2]
[399683750,1766617847832,-150.0,0.0001937,2]
[399683751,1766617847842,-150.0,0.0001937,2]
[399683752,1766617847852,-300.0,0.0001937,2]
[399683753,1766617847861,-200.0,0.00019382,2]
[399683754,1766617847871,-300.0,0.00019406,2]
[399683755,1766617847882,-150.0,0.00019406,2]
[399683756,1766617847892,-150.0,0.00019406,2]
[399683757,1766617847902,-150.0,0.00019406,2]
[399683758,1766617847912,-150.0,0.00019406,2]
[399683759,1766617847928,-150.0,0.00019406,2]
[399683760,1766617847939,-150.0,0.00019406,2]
[399683761,1766617847949,-300.0,0.00019406,2]
[399683762,1766617847959,-300.31,0.00019406,2]
[399683763,1766617847969,-150.0,0.00019406,2]
[399683764,1766617847979,-150.0,0.00019406,2]
[399683765,1766617847989,-150.0,0.00019406,2]
[399683766,1766617847999,-150.0,0.00019406,2]
[399683767,1766617848009,-150.0,0.00019406,2]
[399683768,1766617848019,-150.0,0.00019406,2]
[399683769,1766617848029,-155.73,0.00019406,2]
[399683770,1766617848039,-232.61,0.00019406,2]
[399683771,1766617848050,-150.0,0.00019406,2]
[399683772,1766617848060,-150.0,0.00019406,2]
[399683773,1766617848070,-150.0,0.00019406,2]
[399683774,1766617848080,-203.86,0.00019413,2]
[399683775,1766617848090,-12584.9,0.00019427,2]
[399683776,1766617848099,-1000.0,0.00019438,2]
[399683777,1766617848109,-1098.0,0.00019439,2]
[399683778,1766617848119,-373.07297731,0.0001945,2]
[399683779,1766617848130,-621.78829552,0.00019452,2]
[399683780,1766617848141,-1776.71046672,0.00019474,2]
[399683781,1766617848151,-150.0,0.00019499,2]
[399683782,1766617848161,-150.0,0.00019499,2]
[399683783,1766617848173,-150.0,0.00019499,2]
[399683784,1766617848183,-150.0,0.00019499,2]
[399683785,1766617848194,-150.0,0.00019499,2]
[399683786,1766617848203,-150.0,0.00019499,2]
[399683787,1766617848213,-150.0,0.00019499,2]
[399683788,1766617848223,-150.0,0.00019499,2]
[399683789,1766617848234,-150.0,0.00019499,2]
[399683790,1766617848245,-150.0,0.00019499,2]
[399683791,1766617848256,-150.0,0.00019499,2]
[399683792,1766617848266,-150.0,0.00019499,2]
[399683793,1766617848277,-179.2,0.00019519,2]
[399683794,1766617848294,-150.2114992,0.00019521,2]
[399683795,1766617848304,-200.0,0.00019576,2]
[399683796,1766617848314,-299.0,0.000196,2]
[399683797,1766617848324,-983.0,0.000196,2]
[399683798,1766617848334,-849.0,0.000196,2]
[399683799,1766617848344,-306.90902189,0.00019616,2]
[399683800,1766617848354,-218.13226304,0.00019616,2]
[399683801,1766617848364,-2000.0,0.00019616,2]
[399683802,1766617848375,-1000.0,0.00019616,2]
[399683803,1766617848386,-1000.0,0.00019616,2]
[399683804,1766617848395,-1600.91603799,0.00019616,2]
[399683805,1766617848406,-2000.0,0.00019616,2]
[399683806,1766617848417,-2000.0,0.00019616,2]
[399683807,1766617848427,-2000.0,0.00019616,2]
[399683808,1766617848438,-2000.0,0.00019616,2]
[399683809,1766617848448,-2079.84715675,0.00019616,2]
[399683810,1766617848458,-2000.0,0.00019616,2]
[399683811,1766617848470,-2000.0,0.00019616,2]
[399683812,1766617848480,-2000.0,0.00019616,2]
[399683813,1766617848491,-2000.0,0.00019616,2]
[399683814,1766617848501,-1471.92079505,0.00019616,2]
[399683815,1766617848511,-205.26,0.00019623,2]
[399683816,1766617848521,-150.0,0.00019726,2]
[399683817,1766617848531,-179.2,0.00019759,2]
[399683818,1766617848542,-205.26,0.0001982,2]
[399683819,1766617848552,-4905.54228056,0.000199,3]
[399683820,1766617848562,-500.0,0.000199,2]
[399683821,1766617848572,-500.0,0.000199,2]
[399683822,1766617848584,-500.0,0.000199,2]
[399683823,1766617848594,-500.0,0.000199,2]
[399683824,1766617848604,-500.0,0.000199,2]
[399683825,1766617848614,-500.0,0.000199,2]
[399683826,1766617848626,-500.0,0.000199,2]
[399683827,1766617848636,-500.0,0.000199,2]
[399683828,1766617848646,-500.0,0.000199,2]
[399683829,1766617848662,-500.0,0.000199,2]
[399683830,1766617848673,-500.0,0.000199,2]
[399683831,1766617848683,-500.0,0.000199,2]
[399683832,1766617848693,-500.0,0.000199,2]
[399683833,1766617848703,-500.0,0.000199,2]
[399683834,1766617848714,-500.0,0.000199,2]
[399683835,1766617848723,-500.0,0.000199,2]
[399683836,1766617848733,-500.0,0.000199,2]
[399683837,1766617848743,-500.0,0.000199,2]
[399683838,1766617848753,-500.0,0.000199,2]
[399683839,1766617848762,-500.0,0.000199,2]
[399683840,1766617848773,-500.0,0.000199,2]
[399683841,1766617848782,-500.0,0.000199,2]
[399683842,1766617848792,-500.0,0.000199,2]
[399683843,1766617848802,-500.0,0.000199,2]
[399683844,1766617848812,-500.0,0.000199,2]
[399683845,1766617848822,-500.0,0.000199,2]
[399683846,1766617848833,-500.0,0.000199,2]
[399683847,1766617848843,-500.0,0.000199,2]
[399683848,1766617848854,-500.0,0.000199,2]
[399683849,1766617848864,-500.0,0.000199,2]
[399683850,1766617848874,-500.0,0.000199,2]
[399683851,1766617848884,-500.0,0.000199,2]
[399683852,1766617848894,-500.0,0.000199,2]
[399683853,1766617848905,-500.0,0.000199,2]
[399683854,1766617848925,-500.0,0.000199,2]
[399683855,1766617848944,-500.0,0.000199,2]
[399683856,1766617848964,-500.0,0.000199,2]
[399683857,1766617848987,-500.0,0.000199,2]
[399683858,1766617849008,-500.0,0.000199,2]
[399683859,1766617849030,-500.0,0.000199,2]
[399683860,1766617849054,-500.0,0.000199,2]
[399683861,1766617849066,-500.0,0.000199,2]
[399683862,1766617849079,-826.0,0.000199,2]
[399683863,1766617849089,-500.0,0.000199,2]
[399683864,1766617849104,-500.0,0.000199,2]
[399683865,1766617849115,-500.0,0.000199,2]
[399683866,1766617849126,-500.0,0.000199,2]
[399683867,1766617849137,-500.0,0.000199,2]
[399683868,1766617849149,-500.0,0.000199,2]
[399683869,1766617849159,-500.0,0.000199,2]
[399683870,1766617849170,-500.0,0.000199,2]
[399683871,1766617849182,-500.0,0.000199,2]
[399683872,1766617849192,-500.0,0.000199,2]
[399683873,1766617849203,-500.0,0.000199,2]
[399683874,1766617849213,-500.0,0.000199,2]
[399683875,1766617849224,-500.0,0.000199,2]
[399683876,1766617849234,-500.0,0.000199,2]
[399683877,1766617849245,-500.0,0.000199,2]
[399683878,1766617849258,-500.0,0.000199,2]
[399683879,1766617849268,-500.0,0.000199,2]
[399683880,1766617849278,-500.0,0.000199,2]
[399683881,1766617849288,-500.0,0.000199,2]
[399683882,1766617849299,-500.0,0.000199,2]
[399683883,1766617849313,-500.0,0.000199,2]
[399683884,1766617849324,-500.0,0.000199,2]
[399683885,1766617849334,-500.0,0.000199,2]
[399683886,1766617849345,-500.0,0.000199,2]
[399683887,1766617849355,-500.0,0.000199,2]
[399683888,1766617849365,-500.0,0.000199,2]
[399683889,1766617849375,-500.0,0.000199,2]
[399683890,1766617849385,-500.0,0.000199,2]
[399683891,1766617849395,-500.0,0.000199,2]
[399683892,1766617849405,-500.0,0.000199,2]
[399683893,1766617849414,-500.0,0.000199,2]
[399683894,1766617849424,-500.0,0.000199,2]
[399683895,1766617849434,-500.0,0.000199,2]
[399683896,1766617849443,-500.0,0.000199,2]
[399683897,1766617849454,-500.0,0.000199,2]
[399683898,1766617849463,-500.0,0.000199,2]
[399683899,1766617849473,-500.0,0.000199,2]
[399683900,1766617849483,-500.0,0.000199,2]
[399683901,1766617849493,-500.0,0.000199,2]
[399683902,1766617849506,-500.0,0.000199,2]
[399683903,1766617849515,-500.0,0.000199,2]
[399683904,1766617849527,-500.0,0.000199,2]
[399683905,1766617849537,-500.0,0.000199,2]
[399683906,1766617849547,-500.0,0.000199,2]
[399683907,1766617849557,-500.0,0.000199,2]
[399683908,1766617849566,-500.0,0.000199,2]
[399683909,1766617849576,-500.0,0.000199,2]
[399683910,1766617849590,-500.0,0.000199,2]
[399683911,1766617849599,-500.0,0.000199,2]
[399683912,1766617849609,-500.0,0.000199,2]
[399683913,1766617849619,-500.0,0.000199,2]
[399683914,1766617849630,-500.0,0.000199,2]
[399683915,1766617849640,-500.0,0.000199,2]
[399683916,1766617849650,-500.0,0.000199,2]
[399683917,1766617849663,-500.0,0.000199,2]
[399683918,1766617849673,-500.0,0.000199,2]
[399683919,1766617849683,-500.0,0.000199,2]
[399683920,1766617849693,-500.0,0.000199,2]
[399683921,1766617849703,-500.0,0.000199,2]
[399683922,1766617849713,-500.0,0.000199,2]
[399683923,1766617849723,-500.0,0.000199,2]
[399683924,1766617849732,-500.0,0.000199,2]
[399683925,1766617849742,-500.0,0.000199,2]
[399683926,1766617849753,-500.0,0.000199,2]
[399683927,1766617849762,-500.0,0.000199,2]
[399683928,1766617849772,-500.0,0.000199,2]
[399683929,1766617849782,-500.0,0.000199,2]
[399683930,1766617849791,-500.0,0.000199,2]
[399683931,1766617849801,-500.0,0.000199,2]
[399683932,1766617849811,-500.0,0.000199,2]
[399683933,1766617849822,-500.0,0.000199,2]
[399683934,1766617849832,-500.0,0.000199,2]
[399683935,1766617849841,-500.0,0.000199,2]
[399683936,1766617849851,-500.0,0.000199,2]
[399683937,1766617849861,-500.0,0.000199,2]
[399683938,1766617849871,-500.0,0.000199,2]
[399683939,1766617849880,-500.0,0.000199,2]
[399683940,1766617849890,-500.0,0.000199,2]
[399683941,1766617849899,-500.0,0.000199,2]
[399683942,1766617849909,-500.0,0.000199,2]
[399683943,1766617849918,-500.0,0.000199,2]
[399683944,1766617849927,-500.0,0.000199,2]
[399683945,1766617849937,-500.0,0.000199,2]
[399683946,1766617849947,-500.0,0.000199,2]
[399683947,1766617849958,-500.0,0.000199,2]
[399683948,1766617849968,-500.0,0.000199,2]
[399683949,1766617849978,-500.0,0.000199,2]
[399683950,1766617849987,-500.0,0.000199,2]
[399683951,1766617849998,-500.0,0.000199,2]
[399683952,1766617850007,-500.0,0.000199,2]
[399683953,1766617850017,-500.0,0.000199,2]
[399683954,1766617850027,-500.0,0.000199,2]
[399683955,1766617850037,-500.0,0.000199,2]
[399683956,1766617850048,-500.0,0.000199,2]
[399683957,1766617850058,-500.0,0.000199,2]
[399683958,1766617850068,-500.0,0.000199,2]
[399683959,1766617850077,-500.0,0.000199,2]
[399683960,1766617850087,-500.0,0.000199,2]
[399683961,1766617850097,-500.0,0.000199,2]
[399683962,1766617850107,-500.0,0.000199,2]
[399683963,1766617850117,-500.0,0.000199,2]
[399683964,1766617850126,-500.0,0.000199,2]
[399683965,1766617850136,-500.0,0.000199,2]
[399683966,1766617850146,-500.0,0.000199,2]
[399683967,1766617850155,-500.0,0.000199,2]
[399683968,1766617850165,-500.0,0.000199,2]
[399683969,1766617850176,-500.0,0.000199,2]
[399683970,1766617850186,-500.0,0.000199,2]
[399683971,1766617850196,-500.0,0.000199,2]
[399683972,1766617850206,-500.0,0.000199,2]
[399683973,1766617850216,-500.0,0.000199,2]
[399683974,1766617850226,-500.0,0.000199,2]
[399683975,1766617850236,-500.0,0.000199,2]
[399683976,1766617850247,-500.0,0.000199,2]
[399683977,1766617850256,-500.0,0.000199,2]
[399683978,1766617850266,-500.0,0.000199,2]
[399683979,1766617850276,-500.0,0.000199,2]
[399683980,1766617850286,-500.0,0.000199,2]
[399683981,1766617850296,-500.0,0.000199,2]
[399683982,1766617850306,-500.0,0.000199,2]
[399683983,1766617850316,-500.0,0.000199,2]
[399683984,1766617850325,-500.0,0.000199,2]
[399683985,1766617850335,-500.0,0.000199,2]
[399683986,1766617850346,-500.0,0.000199,2]
[399683987,1766617850356,-500.0,0.000199,2]
[399683988,1766617850366,-500.0,0.000199,2]
[399683989,1766617850376,-655.0,0.000199,2]
[399683990,1766617850386,-8274.66932352,0.0002,2]
[399683991,1766617850396,-7325.77362823,0.0002,2]
[399683992,1766617850406,-5000.00781956,0.0002,2]
[399683993,1766617850415,-500.0,0.0002,7]
[399683994,1766617850425,-200.0,0.0002,2]
[399683995,1766617850436,-10881.1622775,0.0002,2]
[399683996,1766617850446,-5350.0,0.0002,2]
[399683997,1766617850456,-5000.0,0.0002,3]
[399683998,1766617850466,-500.0,0.0002,2]
[399683999,1766617850475,-500.0,0.0002,2]
[399684000,1766617850485,-500.0,0.0002,2]
[399684001,1766617850494,-500.0,0.0002,2]
[399684002,1766617850504,-500.0,0.0002,2]
[399684003,1766617850514,-500.0,0.0002,2]
[399684004,1766617850524,-500.0,0.0002,2]
[399684005,1766617850533,-500.0,0.0002,2]
[399684006,1766617850543,-500.0,0.0002,2]
[399684007,1766617850553,-500.0,0.0002,2]
[399684008,1766617850563,-500.0,0.0002,2]
[399684009,1766617850572,-500.0,0.0002,2]
[399684010,1766617850582,-500.0,0.0002,2]
[399684011,1766617850592,-500.0,0.0002,2]
[399684012,1766617850606,-500.0,0.0002,2]
[399684013,1766617850616,-500.0,0.0002,2]
[399684014,1766617850626,-500.0,0.0002,2]
[399684015,1766617850636,-500.0,0.0002,2]
[399684016,1766617850647,-500.0,0.0002,2]
[399684017,1766617850657,-500.0,0.0002,2]
[399684018,1766617850668,-500.0,0.0002,2]
[399684019,1766617850678,-500.0,0.0002,2]
[399684020,1766617850688,-500.0,0.0002,2]
[399684021,1766617850697,-500.0,0.0002,2]
[399684022,1766617850707,-500.0,0.0002,2]
[399684023,1766617850717,-610.0,0.0002,2]
[399684024,1766617850727,-270.33,0.0002,2]
[399684025,1766617850737,-186.82,0.0002,2]
[399684026,1766617850746,-205.25677672,0.00020016,2]
[399684027,1766617850756,-305.0,0.000201,2]
[399684028,1766617850776,-1000.0,0.00020116,2]
[399684029,1766617850798,-2500.0,0.00020164,2]
[399684030,1766617850810,-1468.84874159,0.00020164,2]
[399684031,1766617850821,-1496.61681738,0.00020164,2]
[399684032,1766617850832,-2446.68353605,0.00020164,2]
[399684033,1766617850842,-2381.04120458,0.00020164,2]
[399684034,1766617850853,-2500.0,0.00020164,2]
[399684035,1766617850863,-2500.0,0.00020164,2]
[399684036,1766617850873,-2500.0,0.00020164,2]
[399684037,1766617850884,-1003.6854697,0.00020164,2]
[399684038,1766617850895,-1000.0,0.00020187,2]
[399684039,1766617850905,-203.86,0.00020189,2]
[399684040,1766617850916,-151.42395307,0.00020212,2]
[399684041,1766617850925,-1322.05,0.00020219,2]
[399684042,1766617850936,-702.35996322,0.00020228,2]
[399684043,1766617852313,-160.7515155,0.00014938,2]
[399684044,1766617852353,-127.42938889,0.00014938,2]
[399684045,1766617852363,-206.38734007,0.00014939,2]
[399684046,1766617852372,-267.11328904,0.00016438,2]
[399684047,1766617852421,-266.97929396,0.00016438,2]
[399684048,1766617852432,-153.0,0.000171,2]
[399684049,1766617852442,-517.75003678,0.00020228,2]
[399684050,1766617852452,-96.8136371,0.00020228,2]
[399684051,1766617852464,-53.1863629,0.00020228,2]
[399684052,1766617852474,-150.0,0.00020228,2]
[399684053,1766617852483,-150.0,0.00020274,2]
[399684054,1766617852493,-239.36620471,0.00020356,7]
[399684055,1766617852581,-300.20439259,0.00020356,7]
[399684056,1766617852593,-410.72028235,0.00020356,7]
[399684057,1766617852604,-271.46602208,0.00020463,2]
[399684058,1766617852623,-276.29565446,0.00020463,2]
[399684059,1766617852637,-550.23832346,0.00020463,2]
[399684060,1766617852647,-195.179628,0.00020646,2]
[399684061,1766617852661,-298.0,0.00020646,2]
[399684062,1766617853129,-987.820372,0.00020646,2]
[399684063,1766617853140,-2000.0,0.000207,2]
[399684064,1766617853151,-1000.0,0.000207,2]
[399684065,1766617853162,-3000.0,0.00020712,2]
[399684066,1766617853173,-3000.0,0.00020712,2]
[399684067,1766617853184,-3003.11330807,0.00020712,2]
[399684068,1766617853195,-648.87026142,0.00020712,2]
[399684069,1766617853206,-402.0,0.00020742,10]
[399684070,1766617853216,-217.34765879,0.00020784,2]
[399684071,1766617853227,-1000.0,0.00020795,2]
[399684072,1766617853238,-386.87667747,0.00020819,2]
[399684073,1766617853250,-150.0,0.00020822,2]
[399684074,1766617853267,-322.81163651,0.00020885,2]
[399684075,1766617853279,-6453.0,0.00020903,2]
[399684076,1766617853291,-203.86,0.00020966,2]
[399684077,1766617853302,-500.0,0.00021,7]
[399684078,1766617853314,-500.0,0.00021,7]
[399684079,1766617853324,-500.0,0.00021,7]
[399684080,1766617853336,-455.7,0.00021,7]
[399684081,1766617853348,-5000.0,0.00021,5]
[399684082,1766617853359,-350.0,0.00021,2]
[399684083,1766617853371,-150.0,0.0002105,2]
[399684084,1766617853385,-6848.18,0.00021068,2]
[399684085,1766617853397,-151.42395307,0.00021175,2]
[399684086,1766617853408,-1600.0,0.00021206,2]
[399684087,1766617853420,-1776.71046672,0.0002124,2]
[399684088,1766617853432,-1670.69301146,0.0002126,2]
[399684089,1766617853443,-2109.63317787,0.0002126,2]
[399684090,1766617853455,-6356.57,0.0002137,2]
[399684091,1766617853466,-150.0,0.0002137,2]
[399684092,1766617853479,-32647.15122059,0.000215,2]
[399684093,1766617853491,-1098.0,0.0002154,2]
[399684094,1766617853502,-540.02,0.000217,7]
[399684095,1766617853513,-150.32462202,0.00021839,5]
[399684096,1766617853525,-1000.0,0.0002187,2]
[399684097,1766617853536,-1973.62415947,0.0002187,2]
[399684098,1766617853546,-1000.0,0.0002187,2]
[399684099,1766617853558,-1000.0,0.0002187,2]
[399684100,1766617853568,-1000.0,0.0002187,2]
[399684101,1766617853579,-1000.0,0.0002187,2]
[399684102,1766617853589,-2000.0,0.0002189,2]
[399684103,1766617853600,-2000.0,0.0002189,2]
[399684104,1766617853614,-2004.5731,0.0002189,2]
[399684105,1766617853625,-2000.0,0.000219,2]
[399684106,1766617853636,-2000.0,0.0002191,2]
[399684107,1766617853651,-500.0,0.0002191,2]
[399684108,1766617853662,-500.0,0.0002191,10]
[399684109,1766617853673,-500.0,0.0002191,2]
[399684110,1766617853685,-500.0,0.0002191,10]
[399684111,1766617853695,-500.0,0.0002191,2]
[399684112,1766617853706,-500.0,0.0002191,2]
[399684113,1766617853717,-186.61271646,0.0002191,10]
[399684114,1766617853727,-300.250431,0.00021917,2]
[399684115,1766617853738,-500.0,0.00021917,2]
[399684116,1766617853749,-500.0,0.00021917,2]
[399684117,1766617853759,-500.0,0.00021917,2]
[399684118,1766617853770,-500.0,0.00021917,2]
[399684119,1766617853780,-500.0,0.00021917,2]
[399684120,1766617853791,-500.0,0.00021917,2]
[399684121,1766617853801,-500.0,0.00021917,2]
[399684122,1766617853812,-500.0,0.00021917,2]
[399684123,1766617853822,-500.0,0.00021917,2]
[399684124,1766617853833,-5000.0,0.00021918,2]
[399684125,1766617853843,-154.92559391,0.00021918,2]
[399684126,1766617853854,-150.0,0.00021918,2]
[399684127,1766617853864,-800.0,0.00021918,8]
[399684128,1766617853874,-800.0,0.00021918,8]
[399684129,1766617853884,-800.0,0.00021918,8]
[399684130,1766617853895,-800.0,0.00021918,8]
[399684131,1766617853905,-800.0,0.00021918,8]
[399684132,1766617853916,-800.0,0.00021918,8]
[399684133,1766617853927,-800.0,0.00021918,8]
[399684134,1766617853937,-800.0,0.00021918,8]
[399684135,1766617853948,-500.0,0.00021918,2]
[399684136,1766617853958,-500.0,0.00021918,2]
[399684137,1766617853969,-500.0,0.00021918,2]
[399684138,1766617853979,-294.7804169,0.00021918,2]
[399684139,1766617853994,-2006.949461,0.0002192,2]
[399684140,1766617854005,-594.41097414,0.00021944,2]
[399684141,1766617854016,-1000.0,0.0002197,2]
[399684142,1766617854027,-1000.0,0.0002197,2]
[399684143,1766617854039,-601.70354363,0.0002197,2]
[399684144,1766617854050,-400.0,0.0002197,2]
[399684145,1766617854061,-400.0,0.0002197,2]
[399684146,1766617854072,-400.0,0.0002197,2]
[399684147,1766617854082,-250.46626035,0.00021973,2]
[399684148,1766617854093,-250.0,0.00022,3]
[399684149,1766617854103,-6153.54512555,0.00022,5]
[399684150,1766617854114,-362.0,0.00022,7]
[399684151,1766617854124,-440.13378286,0.00022,2]
[399684152,1766617854135,-440.13378286,0.00022,2]
[399684153,1766617854146,-625.76343979,0.00022,2]
[399684154,1766617854156,-169.99,0.00022,2]
[399684155,1766617854167,-247.27559817,0.00022077,2]
[399684156,1766617854182,-1609.0,0.00022102,2]
[399684157,1766617854194,-612.0,0.00022102,2]
[399684158,1766617854204,-1326.0,0.00022102,2]
[399684159,1766617854214,-3458.0,0.00022102,2]
[399684160,1766617854225,-1263.0,0.00022102,2]
[399684161,1766617854723,-432.0,0.00022102,2]
[399684162,1766617854736,-2430.0,0.00022102,2]
[399684163,1766617854746,-4807.0,0.00022102,2]
[399684164,1766617854757,-6533.0,0.00022102,2]
[399684165,1766617854767,-151.42395307,0.00022137,2]
[399684166,1766617854777,-401.19111454,0.00022188,2]
[399684167,1766617854788,-644.79446246,0.00022191,2]
[399684168,1766617854799,-150.0,0.00022299,2]
[399684169,1766617854808,-150.2035685,0.00022466,2]
[399684170,1766617854819,-150.0,0.00022499,2]
[399684171,1766617854829,-150.0,0.00022499,2]
[399684172,1766617854839,-150.0,0.00022499,2]
[399684173,1766617854850,-150.0,0.00022499,2]
[399684174,1766617854860,-150.0,0.00022499,2]
[399684175,1766617854870,-150.0,0.00022499,2]
[399684176,1766617854881,-150.0,0.00022499,2]
[399684177,1766617854891,-150.0,0.00022499,2]
[399684178,1766617854903,-150.0,0.00022499,2]
[399684179,1766617854913,-150.0,0.00022499,2]
[399684180,1766617854923,-150.0,0.00022499,2]
[399684181,1766617854934,-1098.0,0.00022616,2]
[399684182,1766617854944,-322.81163651,0.00022867,2]
[399684183,1766617854954,-4484.0,0.00022993,2]
[399684184,1766617854970,-1004.38948415,0.00023,2]
[399684185,1766617854982,-7957.4271862,0.00023,120]
[399684186,1766617854993,-5000.0,0.00023,5]
[399684187,1766617855005,-400.0,0.00023,2]
[399684188,1766617855016,-534.0,0.00023,7]
[399684189,1766617855027,-1776.71046672,0.00023005,2]
[399684190,1766617855038,-500.0,0.00023096,2]
[399684191,1766617855049,-151.42395307,0.000231,2]
[399684192,1766617855060,-2577.47592189,0.000231,2]
[399684193,1766617855070,-1600.0,0.00023133,2]
[399684194,1766617855082,-500.0,0.00023227,2]
[399684195,1766617855092,-74502.3066483,0.00023228,2]
[399684196,1766617855103,-534.0,0.00023288,7]
[399684197,1766617855114,-150.0,0.00023431,2]
[399684198,1766617855125,-1220.11,0.00023431,2]
[399684199,1766617855136,-150.0,0.00023431,2]
[399684200,1766617855147,-1220.11,0.00023431,2]
[399684201,1766617855159,-150.0,0.00023431,2]
[399684202,1766617855171,-150.0,0.00023431,2]
[399684203,1766617855183,-1220.11,0.00023431,2]
[399684204,1766617855194,-1220.11,0.00023431,2]
[399684205,1766617855207,-150.0,0.00023431,2]
[399684206,1766617855218,-1220.11,0.00023431,2]
[399684207,1766617855231,-151.12,0.00023431,2]
[399684208,1766617855241,-1220.11,0.00023431,2]